fUSD/lending_fUSD_20250530
["ID","MTS","AMOUNT","RATE_DAILY","PERIOD"]
[363095397,1748574651539,-420.0,0.00022191,2]
[363095399,1748574651548,-420.0,0.00022191,2]
[363095401,1748574651558,-1235.56,0.00022191,2]
[363095403,1748574651567,-519.22,0.00022191,2]
[363095405,1748574651576,-427.55,0.00022191,2]
[363095407,1748574651585,-450.2,0.00022191,2]
[363095410,1748574651595,-420.0,0.00022191,2]
[363095411,1748574651604,-420.0,0.00022191,2]
[363095413,1748574651613,-420.0,0.00022191,2]
[363095415,1748574651622,-220.23481666,0.00022191,2]
[363095417,1748574651631,-496.64,0.00022191,2]
[363095419,1748574651640,-420.0,0.00022191,2]
[363095421,1748574651650,-420.0,0.00022191,2]
[363095423,1748574651659,-780.8,0.00022191,2]
[363095425,1748574651668,-522.37,0.00022191,2]
[363095427,1748574651677,-420.0,0.00022191,2]
[363095429,1748574651687,-420.0,0.00022191,2]
[363095431,1748574651696,-1616.18,0.00022191,2]
[363095433,1748574651705,-420.0,0.00022191,2]
[363095435,1748574651715,-420.0,0.00022191,2]
[363095437,1748574651724,-484.18,0.00022191,2]
[363095439,1748574651733,-675.81,0.00022191,2]
[363095441,1748574651742,-597.22,0.00022191,2]
[363095443,1748574651752,-1447.82,0.00022191,2]
[363095445,1748574651761,-420.0,0.00022191,2]
[363095447,1748574651770,-595.26,0.00022191,2]
[363095449,1748574651780,-420.0,0.00022191,2]
[363095451,1748574651790,-420.0,0.00022191,2]
[363095453,1748574651799,-791.43,0.00022191,2]
[363095455,1748574651808,-420.0,0.00022191,2]
[363095457,1748574651817,-446.4,0.00022191,2]
[363095459,1748574651825,-524.9,0.00022191,2]
[363095461,1748574651835,-1001.27,0.00022191,2]
[363095463,1748574651844,-420.0,0.00022191,2]
[363095465,1748574651854,-420.0,0.00022191,2]
[363095466,1748574651863,-18.851772,0.00022191,7]
[363095469,1748574651872,-1107.74,0.00022191,2]
[363095471,1748574651882,-157.31,0.00022191,2]
[363095473,1748574651891,-420.0,0.00022191,2]
[363095475,1748574651901,-157.31,0.00022191,2]
[363095477,1748574651910,-157.31,0.00022191,2]
[363095478,1748574651919,-157.31,0.00022191,2]
[363095480,1748574651928,-157.34903399,0.00022191,2]
[363095482,1748574651937,-151.0,0.00022191,7]
[363095484,1748574651945,-420.0,0.00022191,2]
[363095486,1748574651954,-420.0,0.00022191,2]
[363095488,1748574651962,-422.88,0.00022191,2]
[363095490,1748574651970,-2515.63,0.00022191,2]
[363095492,1748574651980,-1101.86,0.00022191,2]
[363095494,1748574651988,-420.0,0.00022191,2]
[363095496,1748574651997,-420.0,0.00022191,2]
[363095498,1748574652006,-1162.19,0.00022191,2]
[363095500,1748574652014,-420.0,0.00022191,2]
[363095502,1748574652023,-420.0,0.00022191,2]
[363095504,1748574652031,-420.0,0.00022191,2]
[363095506,1748574652039,-1766.07,0.00022191,2]
[363095507,1748574652046,-545.73,0.00022191,2]
[363095508,1748574652053,-420.0,0.00022191,2]
[363095509,1748574652059,-420.0,0.00022191,2]
[363095510,1748574652066,-420.0,0.00022191,2]
[363095511,1748574652072,-420.0,0.00022191,2]
[363095512,1748574652082,-987.76,0.00022191,2]
[363095513,1748574652091,-420.0,0.00022191,2]
[363095514,1748574652100,-420.0,0.00022191,2]
[363095515,1748574652109,-420.0,0.00022191,2]
[363095516,1748574652119,-577.28,0.00022191,2]
[363095518,1748574652128,-420.0,0.00022191,2]
[363095520,1748574652137,-453.5,0.00022191,2]
[363095522,1748574652146,-420.0,0.00022191,2]
[363095524,1748574652156,-151.0,0.00022191,7]
[363095526,1748574652165,-769.99,0.00022191,2]
[363095528,1748574652175,-1207.41,0.00022191,2]
[363095530,1748574652184,-420.0,0.00022191,2]
[363095532,1748574652194,-420.0,0.00022191,2]
[363095534,1748574652203,-420.0,0.00022191,2]
[363095536,1748574652212,-1247.46,0.00022191,2]
[363095538,1748574652221,-420.0,0.00022191,2]
[363095540,1748574652229,-420.0,0.00022191,2]
[363095542,1748574652241,-420.0,0.00022191,2]
[363095544,1748574652249,-666.92,0.00022191,2]
[363095546,1748574652257,-151.0,0.00022191,7]
[363095548,1748574652266,-420.0,0.00022191,2]
[363095550,1748574652274,-420.0,0.00022191,2]
[363095552,1748574652283,-553.24145152,0.00022191,2]
[363095554,1748574652292,-497.42,0.00022191,2]
[363095556,1748574652302,-1118.33,0.00022191,2]
[363095558,1748574652311,-475.00740577,0.00022191,2]
[363095560,1748574652321,-644.65,0.00022191,2]
[363095562,1748574652330,-420.0,0.00022191,2]
[363095564,1748574652338,-421.58,0.00022191,2]
[363095566,1748574652348,-420.0,0.00022191,2]
[363095568,1748574652358,-224.615183,0.00022191,7]
[363095570,1748574652366,-880.62,0.00022191,2]
[363095572,1748574652376,-469.95,0.00022191,2]
[363095574,1748574652385,-224.615183,0.00022191,7]
[363095576,1748574652393,-1385.17,0.00022191,2]
[363095578,1748574652403,-420.0,0.00022191,2]
[363095580,1748574652413,-946.98,0.00022191,2]
[363095582,1748574652422,-556.56,0.00022191,2]
[363095584,1748574652431,-955.88,0.00022191,2]
[363095586,1748574652440,-420.0,0.00022191,2]
[363095588,1748574652450,-420.0,0.00022191,2]
[363095590,1748574652460,-420.0,0.00022191,2]
[363095592,1748574652473,-420.0,0.00022191,2]
[363095594,1748574652484,-420.0,0.00022191,2]
[363095596,1748574652493,-581.76,0.00022191,2]
[363095598,1748574652502,-1298.94,0.00022191,2]
[363095600,1748574652512,-1186.59,0.00022191,2]
[363095603,1748574652522,-420.0,0.00022191,2]
[363095604,1748574652531,-930.03,0.00022191,2]
[363095606,1748574652541,-420.0,0.00022191,2]
[363095609,1748574652551,-156.304294,0.00022191,7]
[363095611,1748574652560,-182.75419614,0.00022191,2]
[363095613,1748574652570,-442.46,0.00022191,2]
[363095615,1748574652579,-420.0,0.00022191,2]
[363095617,1748574652588,-420.0,0.00022191,2]
[363095618,1748574652597,-420.0,0.00022191,2]
[363095620,1748574652606,-804.24,0.00022191,2]
[363095622,1748574652615,-733.13,0.00022191,2]
[363095624,1748574652624,-420.0,0.00022191,2]
[363095626,1748574652632,-804.81,0.00022191,2]
[363095628,1748574652642,-420.0,0.00022191,2]
[363095630,1748574652651,-525.38,0.00022191,2]
[363095632,1748574652660,-851.59,0.00022191,2]
[363095634,1748574652669,-508.76,0.00022191,2]
[363095636,1748574652678,-35985.01,0.00022191,2]
[363095638,1748574652688,-1181.36,0.00022191,2]
[363095641,1748574652697,-420.0,0.00022191,2]
[363095643,1748574652707,-1040.39,0.00022191,2]
[363095644,1748574652716,-724.79,0.00022191,2]
[363095646,1748574652726,-420.0,0.00022191,2]
[363095648,1748574652735,-851.98,0.00022191,2]
[363095650,1748574652745,-547.29,0.00022191,2]
[363095652,1748574652754,-420.0,0.00022191,2]
[363095654,1748574652763,-420.0,0.00022191,2]
[363095657,1748574652773,-845.3,0.00022191,2]
[363095658,1748574652783,-513.24,0.00022191,2]
[363095661,1748574652793,-420.0,0.00022191,2]
[363095663,1748574652803,-567.36,0.00022191,2]
[363095665,1748574652812,-1411.73,0.00022191,2]
[363095667,1748574652822,-2071.84,0.00022191,2]
[363095669,1748574652832,-3525.61,0.00022191,2]
[363095671,1748574652841,-420.0,0.00022191,2]
[363095673,1748574652850,-420.0,0.00022191,2]
[363095675,1748574652860,-420.0,0.00022191,2]
[363095677,1748574652870,-548.01,0.00022191,2]
[363095679,1748574652879,-420.0,0.00022191,2]
[363095681,1748574652889,-420.0,0.00022191,2]
[363095683,1748574652900,-592.4,0.00022191,2]
[363095685,1748574652909,-479.31,0.00022191,2]
[363095687,1748574652918,-7928.03,0.00022191,2]
[363095689,1748574652929,-448.93,0.00022191,2]
[363095691,1748574652939,-1135.14,0.00022191,2]
[363095693,1748574652950,-420.0,0.00022191,2]
[363095695,1748574652961,-427.12,0.00022191,2]
[363095697,1748574652971,-1386.68,0.00022191,2]
[363095699,1748574652980,-1493.34,0.00022191,2]
[363095701,1748574652990,-420.0,0.00022191,2]
[363095703,1748574652999,-2741.21,0.00022191,2]
[363095705,1748574653009,-1446.74,0.00022191,2]
[363095707,1748574653018,-1701.92,0.00022191,2]
[363095709,1748574653027,-9881.17,0.00022191,2]
[363095712,1748574653037,-148814.52,0.00022191,2]
[363095714,1748574653047,-745.38,0.00022191,2]
[363095716,1748574653056,-420.0,0.00022191,2]
[363095718,1748574653066,-475.79,0.00022191,2]
[363095720,1748574653075,-2595.3,0.00022191,2]
[363095722,1748574653084,-420.0,0.00022191,2]
[363095724,1748574653095,-1729.77,0.00022191,2]
[363095726,1748574653105,-630.26,0.00022191,2]
[363095728,1748574653115,-766.94,0.00022191,2]
[363095730,1748574653125,-3876.78,0.00022191,2]
[363095732,1748574653134,-424.82,0.00022191,2]
[363095734,1748574653144,-420.0,0.00022191,2]
[363095736,1748574653153,-1779.13,0.00022191,2]
[363095737,1748574653164,-151.0,0.00022191,7]
[363095738,1748574653173,-1265.67,0.00022191,2]
[363095739,1748574653183,-465.19,0.00022191,2]
[363095740,1748574653192,-11604.72,0.00022191,2]
[363095742,1748574653202,-2328.87,0.00022191,2]
[363095744,1748574653212,-420.0,0.00022191,2]
[363095746,1748574653221,-420.0,0.00022191,2]
[363095747,1748574653232,-420.0,0.00022191,2]
[363095748,1748574653242,-8369.82,0.00022191,2]
[363095749,1748574653253,-420.0,0.00022191,2]
[363095750,1748574653263,-151.0,0.00022191,7]
[363095751,1748574653273,-420.0,0.00022191,2]
[363095752,1748574653283,-1561.88,0.00022191,2]
[363095753,1748574653294,-420.0,0.00022191,2]
[363095754,1748574653303,-1619.04,0.00022191,2]
[363095755,1748574653313,-833.09,0.00022191,2]
[363095756,1748574653323,-274.702648,0.00022191,7]
[363095757,1748574653333,-699.97,0.00022191,2]
[363095758,1748574653344,-227.28514915,0.00022191,2]
[363095759,1748574653354,-420.0,0.00022191,2]
[363095760,1748574653364,-19656.19,0.00022191,2]
[363095761,1748574653374,-274.702648,0.00022191,7]
[363095762,1748574653384,-1983.92,0.00022191,2]
[363095763,1748574653394,-420.0,0.00022191,2]
[363095764,1748574653404,-2649.98,0.00022191,2]
[363095765,1748574653414,-221.90502367,0.00022191,2]
[363095766,1748574653424,-420.0,0.00022191,2]
[363095767,1748574653434,-1075.69,0.00022191,2]
[363095768,1748574653444,-420.0,0.00022191,2]
[363095769,1748574653453,-420.0,0.00022191,2]
[363095770,1748574653466,-420.0,0.00022191,2]
[363095771,1748574653476,-1144.23,0.00022191,2]
[363095772,1748574653485,-1494.36,0.00022191,2]
[363095773,1748574653495,-570.5,0.00022191,2]
[363095774,1748574653505,-1849.9,0.00022191,2]
[363095775,1748574653516,-1488.87,0.00022191,2]
[363095776,1748574653526,-505.76,0.00022191,2]
[363095777,1748574653536,-2826.12,0.00022191,2]
[363095778,1748574653546,-9831.2,0.00022191,2]
[363095779,1748574653557,-2607.87,0.00022191,2]
[363095780,1748574653566,-421.64,0.00022191,2]
[363095781,1748574653576,-1083.19,0.00022191,2]
[363095782,1748574653586,-3420.82,0.00022191,2]
[363095783,1748574653597,-659.13,0.00022191,2]
[363095784,1748574653607,-1439.56,0.00022191,2]
[363095785,1748574653618,-792.47,0.00022191,2]
[363095786,1748574653628,-855.33,0.00022191,2]
[363095787,1748574653638,-438.52,0.00022191,2]
[363095788,1748574653648,-476.84,0.00022191,2]
[363095789,1748574653658,-420.0,0.00022191,2]
[363095790,1748574653669,-648.1,0.00022191,2]
[363095791,1748574653678,-5694.61,0.00022191,2]
[363095792,1748574653688,-555.87,0.00022191,2]
[363095793,1748574653698,-332.19930091,0.00022191,2]
[363095794,1748574653708,-1550.61,0.00022191,2]
[363095795,1748574653718,-420.0,0.00022191,2]
[363095796,1748574653728,-428.0,0.00022191,2]
[363095797,1748574653739,-420.0,0.00022191,2]
[363095798,1748574653749,-12606.74,0.00022191,2]
[363095799,1748574653759,-420.0,0.00022191,2]
[363095800,1748574653769,-2083.18,0.00022191,2]
[363095801,1748574653780,-689.17,0.00022191,2]
[363095802,1748574653790,-1563.11,0.00022191,2]
[363095803,1748574653800,-151.0,0.00022191,7]
[363095804,1748574653810,-677.01,0.00022191,2]
[363095805,1748574653820,-183.143817,0.00022191,7]
[363095806,1748574653830,-941.08,0.00022191,2]
[363095807,1748574653839,-420.0,0.00022191,2]
[363095808,1748574653850,-2944.16,0.00022191,2]
[363095809,1748574653860,-1409.52,0.00022191,2]
[363095810,1748574653870,-420.0,0.00022191,2]
[363095811,1748574653880,-180.434261,0.00022191,7]
[363095812,1748574653890,-773.27,0.00022191,2]
[363095813,1748574653900,-420.0,0.00022191,2]
[363095814,1748574653911,-4291.38,0.00022191,2]
[363095815,1748574653921,-12173.53,0.00022191,2]
[363095816,1748574653931,-151.0,0.00022191,7]
[363095817,1748574653941,-3366.16,0.00022191,2]
[363095818,1748574653951,-3178.86,0.00022191,2]
[363095819,1748574653961,-739.42,0.00022191,2]
[363095820,1748574653971,-747.79,0.00022191,2]
[363095821,1748574653980,-420.0,0.00022191,2]
[363095822,1748574653990,-151.0,0.00022191,7]
[363095823,1748574654000,-151.0,0.00022191,7]
[363095824,1748574654009,-1417.88,0.00022191,2]
[363095825,1748574654019,-420.0,0.00022191,2]
[363095826,1748574654028,-841.06,0.00022191,2]
[363095827,1748574654038,-1909.75,0.00022191,2]
[363095828,1748574654048,-151.0,0.00022191,7]
[363095829,1748574654057,-420.0,0.00022191,2]
[363095830,1748574654067,-151.0,0.00022191,7]
[363095831,1748574654077,-753.13,0.00022191,2]
[363095832,1748574654086,-550.51,0.00022191,2]
[363095833,1748574654096,-1450.2,0.00022191,2]
[363095834,1748574654105,-420.0,0.00022191,2]
[363095835,1748574654115,-2347.91,0.00022191,2]
[363095836,1748574654124,-1350.37,0.00022191,2]
[363095837,1748574654135,-1865.94,0.00022191,2]
[363095838,1748574654144,-151.0,0.00022191,7]
[363095839,1748574654154,-320.30081479,0.00022191,2]
[363095840,1748574654164,-960.45,0.00022191,2]
[363095841,1748574654174,-895.18,0.00022191,2]
[363095842,1748574654184,-420.0,0.00022191,2]
[363095843,1748574654194,-271.771395,0.00022191,7]
[363095844,1748574654204,-420.0,0.00022191,2]
[363095845,1748574654214,-420.0,0.00022191,2]
[363095846,1748574654223,-4265.91,0.00022191,2]
[363095847,1748574654233,-1553.31,0.00022191,2]
[363095848,1748574654243,-4692.1,0.00022191,2]
[363095849,1748574654252,-420.0,0.00022191,2]
[363095850,1748574654262,-7379.42,0.00022191,2]
[363095851,1748574654271,-694.76,0.00022191,2]
[363095852,1748574654281,-2578.64,0.00022191,2]
[363095853,1748574654290,-1176.75,0.00022191,2]
[363095854,1748574654299,-420.0,0.00022191,2]
[363095855,1748574654310,-721.09,0.00022191,2]
[363095856,1748574654319,-1566.22,0.00022191,2]
[363095857,1748574654329,-1417.15,0.00022191,2]
[363095858,1748574654339,-845.88,0.00022191,2]
[363095859,1748574654350,-605.38,0.00022191,2]
[363095860,1748574654360,-1935.76,0.00022191,2]
[363095861,1748574654369,-577.58,0.00022191,2]
[363095862,1748574654379,-1012.8,0.00022191,2]
[363095863,1748574654388,-420.0,0.00022191,2]
[363095864,1748574654398,-296.60577493,0.00022191,2]
[363095865,1748574654408,-1643.14,0.00022191,2]
[363095866,1748574654418,-151.0,0.00022191,7]
[363095867,1748574654428,-420.0,0.00022191,2]
[363095868,1748574654437,-503.74,0.00022191,2]
[363095869,1748574654447,-7192.01,0.00022191,2]
[363095870,1748574654456,-1044.75,0.00022191,2]
[363095871,1748574654469,-420.0,0.00022191,2]
[363095872,1748574654479,-420.0,0.00022191,2]
[363095873,1748574654489,-1867.31,0.00022191,2]
[363095874,1748574654499,-1551.12,0.00022191,2]
[363095875,1748574654510,-934.72,0.00022191,2]
[363095876,1748574654519,-420.0,0.00022191,2]
[363095877,1748574654529,-151.0,0.00022191,7]
[363095878,1748574654539,-1278.36,0.00022191,2]
[363095879,1748574654550,-2706.91,0.00022191,2]
[363095880,1748574654561,-2952.97,0.00022191,2]
[363095881,1748574654571,-1055.97,0.00022191,2]
[363095882,1748574654580,-488.74,0.00022191,2]
[363095883,1748574654590,-1940.27,0.00022191,2]
[363095884,1748574654600,-721.96,0.00022191,2]
[363095885,1748574654610,-522.9,0.00022191,2]
[363095886,1748574654619,-724.08,0.00022191,2]
[363095887,1748574654629,-610.17,0.00022191,2]
[363095888,1748574654639,-420.0,0.00022191,2]
[363095889,1748574654649,-1648.66,0.00022191,2]
[363095890,1748574654660,-503.54,0.00022191,2]
[363095891,1748574654670,-2943.24,0.00022191,2]
[363095892,1748574654680,-764.15,0.00022191,2]
[363095893,1748574654690,-420.0,0.00022191,2]
[363095894,1748574654699,-2352.42734273,0.00022191,2]
[363095895,1748574655482,-1042.82955653,0.00022191,2]
[363095896,1748574655599,-446.30310074,0.00022191,2]
[363095897,1748574655608,-420.0,0.00022191,2]
[363095898,1748574655618,-420.0,0.00022191,2]
[363095899,1748574655628,-643.52,0.00022191,2]
[363095900,1748574655639,-765.48,0.00022191,2]
[363095901,1748574655651,-1084.9,0.00022191,2]
[363095902,1748574655663,-420.0,0.00022191,2]
[363095903,1748574655672,-1334.26,0.00022191,2]
[363095904,1748574655681,-1851.12754707,0.00022191,2]
[363095905,1748574656149,-300.0,0.00019762,2]
[363095906,1748574656160,-828.71,0.00021917,2]
[363095907,1748574656170,-2569.16,0.00021917,2]
[363095908,1748574656180,-2086.59245293,0.00022191,2]
[363095909,1748574656190,-957.04,0.00022191,2]
[363095910,1748574656201,-1260.52,0.00022191,2]
[363095911,1748574656211,-5671.47,0.00022191,2]
[363095912,1748574656221,-1865.79,0.00022191,2]
[363095913,1748574656231,-420.0,0.00022191,2]
[363095914,1748574656241,-420.0,0.00022191,2]
[363095915,1748574656251,-420.0,0.00022191,2]
[363095916,1748574656262,-420.0,0.00022191,2]
[363095917,1748574656271,-5004.86,0.00022191,2]
[363095918,1748574656281,-4930.94,0.00022191,2]
[363095919,1748574656291,-4529.77,0.00022191,2]
[363095920,1748574656300,-712.76,0.00022191,2]
[363095921,1748574656310,-1861.09,0.00022191,2]
[363095922,1748574656322,-3702.71,0.00022191,2]
[363095923,1748574656332,-1168.67,0.00022191,2]
[363095924,1748574656343,-514.38,0.00022191,2]
[363095925,1748574656353,-1171.85,0.00022191,2]
[363095926,1748574656363,-1306.3,0.00022191,2]
[363095927,1748574656373,-599.15,0.00022191,2]
[363095928,1748574656382,-506.77,0.00022191,2]
[363095929,1748574656392,-4047.98,0.00022191,2]
[363095930,1748574656402,-3076.22,0.00022191,2]
[363095931,1748574656411,-2633.12,0.00022191,2]
[363095932,1748574656421,-752.19,0.00022191,2]
[363095933,1748574656431,-1074.35,0.00022191,2]
[363095934,1748574656440,-1101.85,0.00022191,2]
[363095935,1748574656450,-1237.63,0.00022191,2]
[363095936,1748574656461,-420.0,0.00022191,2]
[363095937,1748574656474,-642.83,0.00022191,2]
[363095938,1748574656484,-1303.97,0.00022191,2]
[363095939,1748574656494,-420.0,0.00022191,2]
[363095940,1748574656503,-420.0,0.00022191,2]
[363095941,1748574656514,-877.94,0.00022191,2]
[363095942,1748574656524,-1985.53,0.00022191,2]
[363095943,1748574656534,-766.77,0.00022191,2]
[363095944,1748574656544,-508.79,0.00022191,2]
[363095945,1748574656554,-420.0,0.00022191,2]
[363095946,1748574656564,-13949.05,0.00022191,2]
[363095947,1748574656574,-11573.51,0.00022191,2]
[363095948,1748574656583,-533.72,0.00022191,2]
[363095949,1748574656594,-980.11,0.00022191,2]
[363095950,1748574656604,-2165.72942356,0.00022191,2]
[363095951,1748574656616,-1204.58057644,0.00022191,2]
[363095952,1748574656626,-628.43,0.00022191,2]
[363095953,1748574656635,-4845.68942354,0.00022191,2]
[363095954,1748574656651,-1000.00057646,0.00022191,2]
[363095955,1748574656661,-699.0,0.00022191,2]
[363095956,1748574656671,-420.0,0.00022191,2]
[363095957,1748574656681,-762.19399864,0.00022191,2]
[363095958,1748574656721,-2898.11600136,0.00022191,2]
[363095959,1748574656731,-420.0,0.00022191,2]
[363095960,1748574656742,-606.36,0.00022191,2]
[363095961,1748574656752,-2920.98,0.00022191,2]
[363095962,1748574656762,-420.0,0.00022191,2]
[363095963,1748574656772,-420.0,0.00022191,2]
[363095964,1748574656781,-807.49,0.00022191,2]
[363095965,1748574656792,-420.31,0.00022191,2]
[363095966,1748574656802,-151.0,0.00022191,7]
[363095967,1748574656812,-151.0,0.00022191,7]
[363095968,1748574656822,-993.73,0.00022191,2]
[363095969,1748574656832,-1033.49,0.00022191,2]
[363095970,1748574656841,-420.0,0.00022191,2]
[363095971,1748574656853,-420.0,0.00022191,2]
[363095972,1748574656863,-679.49,0.00022191,2]
[363095973,1748574656873,-420.0,0.00022191,2]
[363095974,1748574656883,-508.98,0.00022191,2]
[363095975,1748574656893,-4588.14,0.00022191,2]
[363095976,1748574656902,-1035.26,0.00022191,2]
[363095977,1748574656912,-971.29,0.00022191,2]
[363095978,1748574656922,-726.46,0.00022191,2]
[363095979,1748574656932,-1180.53,0.00022191,2]
[363095980,1748574656942,-1237.41,0.00022191,2]
[363095981,1748574656951,-420.0,0.00022191,2]
[363095982,1748574656961,-1013.08,0.00022191,2]
[363095983,1748574656970,-453.92,0.00022191,2]
[363095984,1748574656980,-1053.42,0.00022191,2]
[363095985,1748574656990,-8521.44,0.00022191,2]
[363095986,1748574656999,-666.14,0.00022191,2]
[363095987,1748574657010,-554.89,0.00022191,2]
[363095988,1748574657020,-420.0,0.00022191,2]
[363095989,1748574657029,-420.0,0.00022191,2]
[363095990,1748574657039,-420.0,0.00022191,2]
[363095991,1748574657048,-723.54,0.00022191,2]
[363095992,1748574657058,-461.43,0.00022191,2]
[363095993,1748574657067,-540.7,0.00022191,2]
[363095994,1748574657077,-666.74,0.00022191,2]
[363095995,1748574657086,-6356.04,0.00022191,2]
[363095996,1748574657177,-1222.98,0.00022191,2]
[363095997,1748574657187,-575.76,0.00022191,2]
[363095998,1748574657196,-1375.37,0.00022191,2]
[363095999,1748574657205,-420.0,0.00022191,2]
[363096000,1748574657215,-427.58,0.00022191,2]
[363096001,1748574657226,-420.0,0.00022191,2]
[363096002,1748574657236,-151.0,0.00022191,7]
[363096003,1748574657245,-811.57,0.00022191,2]
[363096004,1748574657254,-420.0,0.00022191,2]
[363096005,1748574657264,-496.68,0.00022191,2]
[363096006,1748574657274,-667.42,0.00022191,2]
[363096007,1748574657283,-944.04,0.00022191,2]
[363096008,1748574657293,-1444.55,0.00022191,2]
[363096009,1748574657302,-1229.15,0.00022191,2]
[363096010,1748574657311,-828.71,0.00022191,2]
[363096011,1748574657321,-2569.16,0.00022191,2]
[363096012,1748574657330,-152.845617,0.00022191,7]
[363096013,1748574657340,-2321.74,0.00022192,2]
[363096014,1748574657353,-1160.87,0.00022192,2]
[363096015,1748574657363,-1161.1,0.00022192,2]
[363096016,1748574657372,-33173.4647713,0.000222,3]
[363096017,1748574657381,-151.0,0.000222,7]
[363096018,1748574657391,-151.0,0.000222,7]
[363096019,1748574657400,-274.702648,0.000222,7]
[363096020,1748574657410,-274.702648,0.000222,7]
[363096021,1748574657420,-151.0,0.000222,7]
[363096022,1748574657429,-151.0,0.000222,7]
[363096023,1748574657439,-154.067732,0.000222,7]
[363096024,1748574657448,-900.0,0.00022203,2]
[363096025,1748574657458,-506.43967409,0.00022203,2]
[363096026,1748574657472,-1200.0,0.00022203,2]
[363096027,1748574657481,-480.6111,0.0002222,2]
[363096028,1748574657491,-291.83503958,0.00022256,2]
[363096029,1748574657501,-150.0,0.00022308,3]
[363096030,1748574657511,-150.0,0.00022318,3]
[363096031,1748574657520,-643.61121482,0.00022319,2]
[363096032,1748574657530,-150.0,0.00022328,3]
[363096033,1748574657540,-150.0,0.00022338,3]
[363096034,1748574657551,-291.83503958,0.00022344,2]
[363096035,1748574657561,-150.0,0.00022348,3]
[363096036,1748574657570,-190.97,0.00022355,2]
[363096037,1748574657579,-150.134,0.00022355,2]
[363096038,1748574657589,-150.0,0.00022381,2]
[363096039,1748574657600,-941.0,0.00022381,2]
[363096040,1748574657609,-1314.0,0.00022381,2]
[363096041,1748574657618,-159.0,0.000224,7]
[363096042,1748574657628,-1000.0,0.00022409,2]
[363096043,1748574657637,-291.83503958,0.00022431,2]
[363096044,1748574657647,-500.0,0.0002244,2]
[363096045,1748574657656,-151.0,0.00022441,7]
[363096046,1748574657666,-4357.2512504,0.00022441,2]
[363096047,1748574657675,-30023.6793371,0.00022441,2]
[363096048,1748574657685,-151.0,0.00022442,7]
[363096049,1748574657694,-3256.3750107,0.00022442,2]
[363096050,1748574657703,-48361.74321399,0.00022442,2]
[363096051,1748574657802,-592.51357148,0.00022062,2]
[363096052,1748574657822,-289.48642852,0.00022062,2]
[363096053,1748574657832,-926.53236592,0.00022442,2]
[363096054,1748574658082,-174.65465267,0.00022442,2]
[363096055,1748574658094,-1082.64833014,0.00022442,2]
[363096056,1748574658416,-378.925,0.00022442,2]
[363096057,1748574658428,-1377.35555522,0.00022442,2]
[363096058,1748574658931,-421.93904876,0.00022192,2]
[363096059,1748574658955,-420.0,0.00021917,2]
[363096060,1748574658965,-485.88095124,0.00022192,2]
[363096061,1748574658975,-166.8360045,0.00022365,2]
[363096062,1748574658985,-98083.20195706,0.00022442,2]
[363096063,1748574658995,-1005.6705201,0.00022442,2]
[363096064,1748574659004,-156.587,0.00022446,2]